bitfinex-derivatives/quotes_SOLF0:USTF0_20250127
["timestamp","ask_amount","ask_price","bid_price","bid_amount"]
[1737942953395,0.03182962,236.7,236.59,84.63377571]
[1737942953596,16.32216863,236.81,236.59,84.63377571]
[1737942953793,0.02938992,236.67,236.61,4.2289]
[1737942953994,4.2262,236.76,236.59,84.63377571]
[1737942954189,8.233e-05,236.66,236.59,84.63377571]
[1737942954394,4.2263,236.76,236.59,84.63377571]
[1737942954596,16.32216863,236.81,236.59,84.63377571]
[1737942955496,0.02965463,236.72,236.68,0.02880934]
[1737942955698,4.226,236.78,236.68,0.02880934]
[1737942955894,16.32216863,236.86,236.68,0.02880934]
[1737942956099,4.2255,236.81,236.63,16.32216863]
[1737942956395,0.0280642,236.79,236.7,0.03066279]
[1737942956996,4.2538642,236.79,236.7,0.03066279]
[1737942957697,0.0280642,236.79,236.7,0.03066279]
[1737942958195,4.2263,236.76,236.7,0.03066279]
[1737942958701,4.2263,236.76,236.71,4.2271]
[1737942959300,6.42e-05,236.79,236.78,4.2259]
[1737942961999,16.32216863,237.02,236.96,4.2227]
[1737942962201,16.32216863,237.02,236.82,10.23598731]
[1737942962402,16.32216863,237.02,236.83,4.0819]
[1737942962703,20.54386863,237.02,236.83,4.0819]
[1737942962899,16.32216863,237.02,236.83,4.0819]
[1737942963105,0.02829323,236.95,236.9,0.0300743]
[1737942963497,16.32216863,236.94,236.86,4.2244]
[1737942963697,16.32216863,236.9,236.73,4.0578]
[1737942963904,16.32216863,236.9,236.73,2.7346]
[1737942964104,16.32216863,236.9,236.73,4.0578]
[1737942964305,4.2242,236.88,236.81,4.2253]
[1737942964701,0.02947739,236.87,236.82,0.026599]
[1737942964903,4.2246,236.86,236.82,0.026599]
[1737942965105,0.02947739,236.87,236.82,0.026599]
[1737942966105,4.2249,236.84,236.82,0.026599]
[1737942966303,0.02947739,236.87,236.82,0.026599]
[1737942968810,0.02947739,236.87,236.85,4.2246]
[1737942969010,7.739e-05,236.87,236.85,4.2246]
[1737942969602,7.739e-05,236.87,236.83,1.3683]
[1737942969603,16.32216863,237.06,236.84,16.32216863]
[1737942969908,4.2214,237.04,236.88,16.32216863]
[1737942970209,1.2939,237.07,236.88,16.32216863]
[1737942970908,0.02780892,237.0,236.95,0.02888956]
[1737942971110,0.02780892,237.0,236.97,4.2224]
[1737942972211,0.02780892,237.0,236.95,0.02888956]
[1737942973016,0.02780892,237.0,236.83,1.3683]
[1737942973311,16.32216863,236.98,236.81,1.4131]
[1737942973509,16.32216863,237.02,236.81,1.4131]
[1737942973706,16.32216863,237.02,236.84,16.32216863]
[1737942973905,17.61606863,237.07,236.85,1.3743]
[1737942974314,0.02827288,236.98,236.94,0.03115626]
[1737942974611,17.61606863,237.07,236.94,0.03115626]
[1737942974812,0.03017765,236.98,236.94,0.03115626]
[1737942975014,17.61606863,237.07,236.94,0.03115626]
[1737942975312,0.03014683,236.98,236.94,0.03115626]
[1737942975611,0.02860252,236.98,236.94,0.03115626]
[1737942976915,0.02860252,236.98,236.97,4.2225]
[1737942978012,0.02860252,236.98,236.94,4.25405626]
[1737942978204,0.02860252,236.98,236.94,0.03115626]
[1737942978410,4.2225,236.97,236.94,0.03115626]
[1737942978610,0.02860252,236.98,236.94,0.03115626]
[1737942979014,4.2229,236.95,236.94,0.03115626]
[1737942979215,0.02860252,236.98,236.94,0.03115626]
[1737942979815,4.2229,236.95,236.94,0.03115626]
[1737942980719,4.2235,236.92,236.82,1.4114]
[1737942981421,4.2232,236.93,236.86,4.2244]
[1737942981620,4.2232,236.93,236.82,1.4114]
[1737942981821,0.03153392,236.92,236.8,16.32216863]
[1737942982020,4.2238,236.9,236.85,4.2246]
[1737942982220,0.03153392,236.92,236.78,1.3138]
[1737942982618,1.3132,236.94,236.78,1.3138]
[1737942982915,0.0323448,236.87,236.78,1.3138]
[1737942983124,0.0323448,236.87,236.76,16.32216863]
[1737942984012,0.0323448,236.87,236.82,4.2251]
[1737942984419,4.225,236.83,236.78,4.2258]
[1737942984622,0.0323448,236.87,236.75,1.3296]
[1737942984824,1.3132,236.94,236.75,1.3296]
[1737942985020,0.02675816,236.83,236.79,4.2256]
[1737942985322,4.2248,236.85,236.75,1.3296]
[1737942985520,0.03167167,236.83,236.75,1.3296]
[1737942985921,0.03167167,236.83,236.76,16.32216863]
[1737942986222,0.03167167,236.83,236.82,4.2252]
[1737942988326,1.3132,236.94,236.9,4.2237]
[1737942988524,2.7902,236.97,236.8,16.32216863]
[1737942988826,2.7902,236.97,236.88,4.2239]
[1737942989526,0.02809677,236.95,236.9,0.0324571]
[1737942989724,4.2236,236.91,236.9,0.0324571]
[1737942991623,0.02809677,236.95,236.83,4.225]
[1737942991828,2.7902,236.97,236.83,4.225]
[1737942992128,2.7902,236.97,236.76,16.32216863]
[1737942992329,4.2238,236.9,236.85,4.2245]
[1737942992827,0.02770276,236.9,236.85,4.2245]
[1737942993026,4.224,236.89,236.85,4.2245]
[1737942993230,0.02770276,236.9,236.76,16.32216863]
[1737942993429,4.2236,236.91,236.76,16.32216863]
[1737942993629,0.03218701,236.85,236.76,16.32216863]
[1737942994828,0.03218701,236.85,236.84,4.2248]
[1737942996928,2.7902,236.97,236.76,16.32216863]
[1737942997128,1.3872,237.01,236.83,16.32216863]
[1737942997531,4.222,237.0,236.96,4.2226]
[1737942997828,23.08945487,237.06,236.87,16.32216863]
[1737942998034,23.08945487,237.06,236.91,16.32216863]
[1737942998227,23.08945487,237.06,237.03,4.2214]
[1737942998830,23.08945487,237.06,237.04,4.2212]
[1737942999429,2.80168557,237.06,237.04,4.2212]
[1737942999734,2.80168557,237.06,237.03,0.03174602]
[1737943000336,4.2473408,237.07,237.03,0.03174602]
[1737943001430,0.0266408,237.07,237.03,0.03174602]
[1737943002337,4.2211,237.05,237.03,0.03174602]
[1737943003339,1.2939,237.06,236.89,2.6975]
[1737943003838,1.2939,237.06,236.91,4.2235]
[1737943004039,16.32216863,237.03,236.83,16.32216863]
[1737943004438,0.02845949,236.95,236.88,4.224]
[1737943005739,0.02845949,236.95,236.83,4.2248]
[1737943005942,0.02845949,236.95,236.79,16.32216863]
[1737943006139,16.32216863,237.03,236.79,16.32216863]
[1737943006336,0.03079199,236.89,236.79,16.32216863]
[1737943006743,0.03079199,236.89,236.85,4.2245]
[1737943008246,0.03079199,236.89,236.79,16.32216863]
[1737943008549,4.25469199,236.89,236.84,4.2248]
[1737943008846,4.25469199,236.89,236.79,16.32216863]
[1737943009346,0.03079199,236.89,236.79,16.32216863]
[1737943009943,0.03079199,236.89,236.77,4.0156]
[1737943010552,0.03079199,236.89,236.75,16.32216863]
[1737943010752,4.2248,236.84,236.79,4.2255]
[1737943010953,1.309,236.94,236.75,16.32216863]
[1737943011147,0.03204595,236.84,236.8,4.2255]
[1737943011353,1.309,236.94,236.75,16.32216863]
[1737943011554,0.02986149,236.84,236.75,16.32216863]
[1737943011750,0.02986149,236.84,236.83,4.225]
[1737943012252,1.309,236.94,236.9,4.2237]
[1737943012454,1.309,236.94,236.79,16.32216863]
[1737943012950,1.309,236.94,236.9,4.2236]
[1737943013353,0.02972562,236.94,236.9,0.02701715]
[1737943014654,0.02972562,236.94,236.93,4.2232]
[1737943015261,4.0258,237.1,236.91,16.32216863]
[1737943016061,2.6084,237.1,236.95,16.32216863]
[1737943016257,16.32216863,237.15,236.96,2.6492]
[1737943016457,114.93337305,237.2,237.03,16.32216863]
[1737943016458,8.1e-06,237.05,237.03,16.32216863]
[1737943016664,114.93337305,237.2,237.03,16.32216863]
[1737943016857,2.7236,237.21,237.07,16.32216863]
[1737943017156,2.7236,237.21,237.11,4.2199]
[1737943017360,28.15574922,237.26,237.19,16.32216863]
[1737943017564,93.23448274,237.27,237.24,16.32216863]
[1737943017864,0.02710394,237.25,237.24,20.53976863]
[1737943018057,0.02710394,237.25,237.2,16.34902514]
[1737943018260,0.02710394,237.25,237.2,0.02685651]
[1737943021055,4.2181,237.22,237.2,0.02685651]
[1737943021466,0.02710394,237.25,237.2,0.02685651]
[1737943022364,0.02710394,237.25,237.07,16.32216863]
[1737943022766,16.32216863,237.27,237.07,16.32216863]
[1737943023168,2.8067,237.33,237.16,16.32216863]
[1737943023663,4.2174,237.26,237.22,0.02745798]
[1737943024367,4.2177,237.24,237.22,0.02745798]
[1737943024567,0.03140081,237.27,237.08,16.32216863]
[1737943024768,16.32216863,237.32,237.08,16.32216863]
[1737943025263,4.2191,237.16,237.09,4.2202]
[1737943025569,16.32216863,237.28,237.04,16.32216863]
[1737943025771,0.02662107,237.15,237.1,0.02689126]
[1737943026067,16.32216863,237.24,237.0,16.32216863]
[1737943026268,0.02924175,237.15,237.1,0.02892613]
[1737943026468,4.22,237.11,237.1,0.02892613]
[1737943027263,0.02924175,237.15,236.96,16.32216863]
[1737943027472,1.3297,237.14,236.96,16.32216863]
[1737943027670,1.3297,237.14,236.96,20.54476863]
[1737943028063,4.2203,237.09,236.96,16.32216863]
[1737943028269,1.3297,237.14,236.96,16.32216863]
[1737943028568,0.02877956,237.05,236.96,16.32216863]
[1737943028763,4.24987956,237.05,236.96,20.54466863]
[1737943028960,0.02877956,237.05,236.96,16.32216863]
[1737943029370,0.02877956,237.05,236.92,16.32216863]
[1737943029570,16.32216863,237.12,236.92,16.32216863]
[1737943029867,16.32216863,237.12,236.92,20.54546863]
[1737943029868,0.02803983,237.01,236.92,20.54546863]
[1737943030070,0.02803983,237.01,236.92,16.32216863]
[1737943031365,4.2221,236.99,236.92,16.32216863]
[1737943031567,0.02803983,237.01,236.88,16.32216863]
[1737943031872,16.32216863,237.12,236.88,16.32216863]
[1737943032367,4.25035285,237.02,236.89,4.2238]
[1737943032568,0.02875285,237.02,236.88,16.32216863]
[1737943033671,4.2227,236.96,236.9,4.2237]
[1737943034071,0.02859354,236.95,236.9,4.2237]
[1737943034468,0.02859354,236.95,236.88,16.32216863]
[1737943034773,0.02859354,236.95,236.84,16.32216863]
[1737943035173,0.02859354,236.95,236.8,16.32216863]
[1737943035373,1.3812,236.99,236.75,16.32216863]
[1737943035573,0.02893739,236.9,236.75,16.32216863]
[1737943035769,4.2239,236.89,236.8,4.2255]
[1737943036074,0.02866514,236.85,236.8,4.2255]
[1737943036267,0.02866514,236.85,236.75,16.32216863]
[1737943036874,0.02866514,236.85,236.78,4.2258]
[1737943037873,0.02866514,236.85,236.81,4.2253]
[1737943038871,0.02866514,236.85,236.75,16.32216863]
[1737943039071,0.02866514,236.85,236.84,4.2248]
[1737943040573,4.2215,237.03,236.95,4.2226]
[1737943040878,2.6664,237.1,236.9,16.32216863]
[1737943041179,1.3501,237.09,236.9,16.32216863]
[1737943041877,0.02981616,237.02,236.99,4.2221]
[1737943042274,0.02981616,237.02,236.97,0.03194665]
[1737943042475,0.02981616,237.02,236.98,4.2222]
[1737943042876,16.32216863,236.98,236.74,16.32216863]
[1737943043081,1.3966,236.97,236.75,0.77061844]
[1737943043274,16.32216863,236.91,236.69,16.32216863]
[1737943044380,0.02769794,236.82,236.69,16.32216863]
[1737943044579,0.02769794,236.82,236.73,4.2266]
[1737943044782,0.02769794,236.82,236.69,16.32216863]
[1737943045482,0.02769794,236.82,236.65,16.32216863]
[1737943045978,0.02780309,236.76,236.63,1.3235]
[1737943046381,0.02780309,236.76,236.63,17.64566863]
[1737943046585,0.02780309,236.76,236.69,26.72180274]
[1737943047081,0.02780309,236.76,236.65,26.72180274]
[1737943047477,0.02780309,236.76,236.66,0.77137198]
[1737943047874,0.02780309,236.76,236.65,26.72180274]
[1737943048385,0.02780309,236.76,236.68,4.2276]
[1737943048581,0.02780309,236.76,236.65,26.72180274]
[1737943049482,0.02780309,236.76,236.63,1.3235]
[1737943049882,4.2265,236.75,236.69,4.2275]
[1737943050077,0.02780309,236.76,236.69,4.2275]
[1737943050586,0.02780309,236.76,236.74,4.2266]
[1737943050780,3.09e-06,236.76,236.74,4.2266]
[1737943051484,3.09e-06,236.76,236.74,5.5405]
[1737943051982,3.09e-06,236.76,236.74,6.8425]
[1737943055382,3.09e-06,236.76,236.73,0.02854336]
[1737943057086,3.09e-06,236.76,236.73,4.25524336]
[1737943057391,3.09e-06,236.76,236.73,0.02854336]
[1737943058387,3.09e-06,236.76,236.74,4.2266]
[1737943059388,3.09e-06,236.76,236.73,0.02854336]
[1737943059584,3.09e-06,236.76,236.75,4.2264]
[1737943059781,3.09e-06,236.76,236.73,0.02854336]
[1737943060187,4.2266,236.74,236.73,0.02854336]
[1737943062589,4.2278,236.68,236.61,29.45550274]
[1737943062787,1.3959,236.75,236.62,4.2286]
[1737943062983,1.3959,236.75,236.61,29.45550274]
[1737943063188,4.2281,236.66,236.61,26.72180274]
[1737943063388,1.3959,236.75,236.57,26.72180274]
[1737943063686,0.03073022,236.7,236.57,26.72180274]
[1737943064391,0.03073022,236.7,236.58,4.2294]
[1737943064993,4.2284,236.64,236.58,4.2294]
[1737943065391,4.25523869,236.64,236.58,4.2294]
[1737943065894,4.2288,236.62,236.57,26.72180274]
[1737943066088,0.02683869,236.64,236.57,26.72180274]
[1737943066498,0.02683869,236.64,236.53,29.47640274]
[1737943066797,0.02683869,236.64,236.53,2.7546]
[1737943066996,0.02683869,236.64,236.53,6.9849]
[1737943066997,4.2293,236.59,236.53,6.9849]
[1737943067194,16.4683054,236.73,236.51,16.4683054]
[1737943067395,0.02747632,236.58,236.51,16.4683054]
[1737943067595,16.4683054,236.73,236.51,16.4683054]
[1737943067797,0.03070385,236.57,236.55,16.4683054]
[1737943067996,1.3959,236.75,236.55,16.4683054]
[1737943068197,0.02807141,236.58,236.51,16.4683054]
[1737943068492,16.4683054,236.69,236.51,16.4683054]
[1737943068696,0.0285846,236.57,236.51,16.4683054]
[1737943068896,2.7641,236.68,236.51,16.4683054]
[1737943069196,4.2296,236.58,236.51,20.6989054]
[1737943069399,0.02906337,236.62,236.51,16.4683054]
[1737943069699,2.7641,236.68,236.53,4.2302]
[1737943069889,2.7641,236.68,236.51,16.4683054]
[1737943069890,0.02992164,236.59,236.51,16.4683054]
[1737943071397,4.2295,236.58,236.52,4.2305]
[1737943071793,4.2295,236.58,236.47,16.4683054]
[1737943072189,0.02992164,236.59,236.47,16.4683054]
[1737943072394,0.02992164,236.59,236.43,28.28644863]
[1737943072595,4.2307,236.52,236.45,4.2316]
[1737943072796,4.2307,236.52,236.43,16.4683054]
[1737943072997,0.02916959,236.53,236.43,16.4683054]
[1737943074202,0.02916959,236.53,236.43,28.28644863]
[1737943074695,0.02916959,236.53,236.43,16.4683054]
[1737943075299,0.02916959,236.53,236.46,4.2316]
[1737943075496,0.02916959,236.53,236.43,16.4683054]
[1737943075803,0.02916959,236.53,236.42,79.06]
[1737943076000,4.2307,236.51,236.45,4.2318]
[1737943076301,0.02916959,236.53,236.42,79.06]
[1737943076694,4.2307,236.51,236.45,4.2316]
[1737943077003,4.2307,236.51,236.42,79.06]
[1737943078200,16.4683054,236.45,236.29,21.67776253]
[1737943078405,16.4683054,236.45,236.29,9.8596193]
[1737943078406,16.4683054,236.36,236.29,9.8596193]
[1737943078701,1.322,236.35,236.29,7.7151193]
[1737943078996,2.7407,236.35,236.21,172.33525377]
[1737943079400,0.03018709,236.3,236.21,172.33525377]
[1737943080402,16.4683054,236.28,236.21,172.33525377]
[1737943080604,4.2356,236.23,236.14,4.2371]
[1737943081198,0.02688783,236.21,236.14,4.2371]
[1737943081499,0.02688783,236.21,236.19,4.2362]
[1737943081912,0.02688783,236.21,236.12,16.4683054]
[1737943081913,1.4078,236.31,236.12,16.4683054]
[1737943082411,16.4683054,236.15,235.94,52.1103623]
[1737943082611,16.4683054,236.06,235.95,0.77374002]
[1737943082908,16.4683054,236.06,235.91,4.2412]
[1737943083114,16.4683054,235.97,235.81,173.69075377]
[1737943083510,16.4683054,235.97,235.81,172.33525377]
[1737943084111,16.4683054,235.97,235.83,4.2425]
[1737943084112,4.2404,235.96,235.83,4.2425]
[1737943084314,16.4683054,235.97,235.81,172.33525377]
[1737943084516,28.33606637,236.01,235.87,4.242]
[1737943084817,0.03039558,235.92,235.81,172.33525377]
[1737943085006,0.03039558,235.92,235.82,26.92296637]
[1737943085407,9.558e-05,235.92,235.9,4.2413]
[1737943086016,9.558e-05,235.92,235.91,1.2976]
[1737943087117,1.4195,236.13,236.03,4.2389]
[1737943087317,1.4195,236.13,235.94,26.92296637]
[1737943087514,1.3278,236.12,235.91,1.2976]
[1737943087715,1.3278,236.12,236.0,4.2395]
[1737943088417,0.03177494,236.08,236.04,0.02680246]
[1737943088821,0.03177494,236.08,236.04,0.02817837]
[1737943094220,0.03177494,236.08,236.05,4.2387]
[1737943094720,0.03177494,236.08,236.04,0.02817837]
[1737943094924,0.03177494,236.08,236.06,4.2386]
[1737943096225,0.03177494,236.08,236.04,0.02817837]
[1737943096921,0.03177494,236.08,236.06,4.2386]
[1737943099029,0.03177494,236.08,236.05,4.2387]
[1737943099226,0.03177494,236.08,236.04,0.02817837]
[1737943099525,7.494e-05,236.08,236.07,4.2384]
[1737943099726,2.7013,236.26,236.07,0.77281821]
[1737943099926,2.7013,236.26,236.18,26.92296637]
[1737943100131,26.92296637,236.41,236.22,26.92296637]
[1737943100329,4.0037,236.4,236.22,26.92296637]
[1737943100528,4.0037,236.4,236.26,26.92296637]
[1737943100729,4.0037,236.4,236.31,4.2339]
[1737943100928,0.02900444,236.35,236.31,4.26220692]
[1737943101130,0.02900444,236.35,236.31,0.02830692]
[1737943102634,0.02900444,236.35,236.18,26.92296637]
[1737943102829,26.92296637,236.36,236.18,26.92296637]
[1737943103135,26.92296637,236.36,236.2,4.236]
[1737943103630,4.0037,236.4,236.18,26.92296637]
[1737943103829,0.03253074,236.3,236.26,0.02741936]
[1737943104029,4.2351,236.26,236.17,4.2365]
[1737943104426,4.2351,236.26,236.14,26.92296637]
[1737943104733,4.2348,236.28,236.2,4.2359]
[1737943104933,26.92296637,236.35,236.14,26.92296637]
[1737943105231,0.03011743,236.27,236.18,26.92296637]
[1737943105430,4.26501743,236.27,236.18,4.2363]
[1737943105635,4.26501743,236.27,236.14,26.92296637]
[1737943106639,4.26501743,236.27,236.2,4.236]
[1737943107335,4.235,236.26,236.2,4.236]
[1737943107630,4.235,236.26,236.14,26.92296637]
[1737943107631,0.03011743,236.27,236.14,26.92296637]
[1737943107935,4.2357,236.22,236.11,1.3078]
[1737943108135,26.92296637,236.31,236.11,1.3078]
[1737943108334,0.03121318,236.19,236.11,1.3078]
[1737943109540,0.03121318,236.19,236.14,26.92296637]
[1737943110635,0.03121318,236.19,236.16,16.51847936]
[1737943110831,4.2344,236.3,236.16,16.51847936]
[1737943111042,4.0037,236.4,236.16,16.51847936]
[1737943111339,4.2336,236.34,236.25,4.2351]
[1737943111537,4.0037,236.4,236.2,16.51847936]
[1737943111940,4.2334,236.35,236.3,4.2343]
[1737943112142,0.02823402,236.32,236.3,4.2343]
[1737943112442,16.51847936,236.52,236.28,16.54922518]
[1737943112633,4.2341,236.51,236.33,16.51847936]
[1737943112832,4.2341,236.51,236.37,16.51847936]
[1737943113336,4.2341,236.51,236.33,16.51847936]
[1737943113642,4.26195092,236.44,236.4,0.03250345]
[1737943114136,0.03005092,236.44,236.4,0.03250345]
[1737943116145,0.03005092,236.44,236.42,4.2321]
[1737943116837,0.03005092,236.44,236.4,0.03250345]
[1737943118344,4.2325,236.42,236.4,0.03250345]
[1737943119545,0.03005092,236.44,236.4,0.03250345]
[1737943119843,4.2324,236.42,236.4,0.03250345]
[1737943121144,26.79253531,236.43,236.24,79.24]
[1737943121344,26.79253531,236.39,236.24,79.24]
[1737943121537,4.235,236.27,236.2,4.2362]
[1737943121742,26.79253531,236.35,236.2,4.2362]
[1737943122035,26.79253531,236.35,236.18,1.3343]
[1737943122036,26.79253531,236.35,236.14,3.74]
[1737943122239,0.0325644,236.3,236.25,0.02846922]
[1737943124141,4.2351,236.27,236.25,6.922e-05]
[1737943124947,31.02763531,236.27,236.25,6.922e-05]
[1737943126343,4.2379,236.11,235.97,26.79253531]
[1737943126542,26.79253531,236.14,235.96,2.8069]
[1737943126741,2.7181,236.13,235.96,1.4054]
[1737943127451,4.2389,236.06,235.99,4.24]
[1737943127645,0.02755894,236.07,235.96,1.4054]
[1737943129150,0.02755894,236.07,235.99,4.24]
[1737943129650,0.02755894,236.07,236.0,4.2398]
[1737943130150,0.02755894,236.07,235.96,1.4054]
[1737943130350,0.02755894,236.07,235.97,4.2403]
[1737943131751,4.2388,236.06,235.97,4.2403]
[1737943131952,4.2388,236.06,235.98,4.2402]
[1737943132148,1.412,236.12,235.93,26.79253531]
[1737943132344,0.02727494,236.04,235.97,26.79253531]
[1737943132947,1.4086,236.13,235.97,26.79253531]
[1737943133152,26.79253531,236.18,235.97,26.79253531]
[1737943133354,4.2374,236.14,236.06,4.2386]
[1737943133650,26.79253531,236.18,235.97,26.79253531]
[1737943134055,4.2378,236.12,236.04,4.239]
[1737943134249,26.82504302,236.1,236.05,0.03245924]
[1737943134454,26.79253531,236.1,235.89,29.63493531]
[1737943134656,4.2383,236.09,236.05,0.02709304]
[1737943134858,26.79253531,236.1,235.96,4.2405]
[1737943135157,0.02896641,236.09,236.05,0.03008754]
[1737943135356,2.706,236.12,235.97,4.2404]
[1737943135562,0.02768648,236.09,236.05,0.02788566]
[1737943137058,4.26608648,236.09,236.05,0.02788566]
[1737943138165,4.2384,236.08,236.05,0.02788566]
[1737943139366,4.2386,236.07,236.05,0.02788566]
[1737943142069,0.02768648,236.09,236.05,0.02788566]
[1737943142571,4.2368,236.17,236.11,4.2377]
[1737943142769,19.25616546,236.24,236.04,1.3217]
[1737943142974,2.7082,236.24,236.04,1.3217]
[1737943143169,4.2362,236.21,236.15,4.2371]
[1737943143364,2.7082,236.24,236.07,16.54796546]
[1737943143565,1.3871,236.26,236.11,16.54796546]
[1737943143769,0.03199923,236.18,236.13,4.26486935]
[1737943143970,0.03199923,236.18,236.13,0.02736935]
[1737943144472,1.3527,236.34,236.15,16.54796546]
[1737943145074,4.2347,236.3,236.21,4.236]
[1737943145272,16.54796546,236.4,236.19,16.54796546]
[1737943145568,0.02813504,236.32,236.27,0.02682793]
[1737943145871,0.02813504,236.32,236.27,16.57479339]
[1737943146073,17.88606546,236.48,236.27,16.57479339]
[1737943146372,1.3527,236.47,236.27,16.54796546]
[1737943146571,1.3527,236.47,236.28,28.20822662]
[1737943146767,4.2326,236.41,236.31,4.2342]
[1737943147070,26.81382662,236.33,236.12,26.81382662]
[1737943147373,4.2353,236.26,236.13,1.3014]
[1737943147574,2.667,236.32,236.2,0.03033956]
[1737943147768,0.02915069,236.22,236.2,0.03033956]
[1737943147969,3.9793,236.32,236.2,0.03033956]
[1737943148170,0.0310195,236.23,236.2,0.03033956]
[1737943148372,3.9793,236.32,236.2,0.03033956]
[1737943148569,0.03165086,236.24,236.2,0.03033956]
[1737943149175,1.3123,236.39,236.2,0.03033956]
[1737943149475,3.9775,236.39,236.16,26.81382662]
[1737943149675,3.9775,236.39,236.17,1.3268]
[1737943150076,4.2344,236.31,236.24,4.2355]
[1737943150275,0.03108398,236.3,236.26,0.02751217]
[1737943151376,26.8449106,236.3,236.08,26.81382662]
[1737943151673,26.81382662,236.3,236.08,26.81382662]
[1737943151870,26.81382662,236.25,236.05,2.6502]
[1737943152071,26.81382662,236.21,236.05,2.6502]
[1737943152272,4.2378,236.12,236.04,4.2391]
[1737943152569,0.03019738,236.13,236.08,0.03105251]
[1737943153469,4.2379,236.11,236.08,0.03105251]
[1737943153877,0.03019738,236.13,236.08,0.03105251]
[1737943154775,0.03019738,236.13,236.09,4.2382]
[1737943154975,0.03019738,236.13,236.08,0.03105251]
[1737943155768,0.03019738,236.13,236.11,4.2378]
[1737943157681,2.7252,236.24,236.15,4.2371]
[1737943157880,1.3902,236.28,236.09,1.3914]
[1737943158080,1.3902,236.28,236.1,1.2997]
[1737943158479,4.2354,236.25,236.19,4.2364]
[1737943158876,0.03014214,236.24,236.2,0.02870685]
[1737943159078,1.3341,236.35,236.17,26.81382662]
[1737943159278,1.3341,236.35,236.2,0.02671261]
[1737943159279,0.03233665,236.24,236.2,0.02671261]
[1737943159483,4.2345,236.3,236.17,26.81382662]
[1737943159682,0.02782415,236.24,236.2,0.03240019]
[1737943161279,4.2361,236.22,236.2,0.03240019]
[1737943161482,0.02782415,236.24,236.2,0.03240019]
[1737943162081,4.2361,236.21,236.2,0.03240019]
[1737943163384,0.02782415,236.24,236.06,1.3056]
[1737943163681,26.81382662,236.22,236.02,2.7497]
[1737943163884,26.81382662,236.18,236.02,2.7497]
[1737943164180,26.81382662,236.18,236.04,4.239]
[1737943164383,26.81382662,236.18,236.02,2.7497]
[1737943164586,0.02751084,236.13,236.09,0.02718817]
[1737943164786,0.02751084,236.13,235.92,3.9821]
[1737943164787,26.84133746,236.13,235.92,3.9821]
[1737943164977,26.81382662,236.08,235.92,3.9821]
[1737943165176,4.239,236.05,235.93,4.2411]
[1737943165487,26.81382662,236.12,235.92,3.9821]
[1737943165874,0.03123783,236.04,236.0,0.03171497]
[1737943166484,4.27043783,236.04,236.0,0.03171497]
[1737943166984,0.03123783,236.04,236.0,0.03171497]
[1737943167180,4.2394,236.03,236.0,0.03171497]
[1737943168687,4.2396,236.02,236.0,0.03171497]
[1737943170187,4.24,235.99,235.86,4.2424]
[1737943170393,28.15952662,236.03,235.83,26.81382662]
[1737943170691,28.15952662,236.03,235.79,26.81382662]
[1737943170887,26.81382662,235.99,235.82,4.243]
[1737943171088,1.4123,235.98,235.79,26.81382662]
[1737943171394,0.02968181,235.93,235.88,0.03101102]
[1737943172088,4.2416,235.91,235.88,0.03101102]
[1737943172389,0.02968181,235.93,235.88,0.03101102]
[1737943173090,4.2417,235.9,235.88,0.03101102]
[1737943175790,0.02968181,235.93,235.88,0.03101102]
[1737943176889,1.3457,236.03,235.88,4.14401102]
[1737943177388,28.15952662,236.03,235.88,2.8171]
[1737943178091,0.02700311,235.98,235.93,0.02806995]
[1737943181592,0.02700311,235.98,235.97,4.2404]
[1737943181995,0.02700311,235.98,235.93,0.02806995]
[1737943182195,0.02700311,235.98,235.94,4.2408]
[1737943182994,0.02700311,235.98,235.95,4.2407]
[1737943183300,0.02700311,235.98,235.93,0.02806995]
[1737943183804,0.02700311,235.98,235.95,4.2407]
[1737943183996,0.02700311,235.98,235.93,0.02806995]
[1737943184398,3.11e-06,235.98,235.97,4.2404]
[1737943184898,3.11e-06,235.98,235.93,0.02806995]
[1737943186707,4.2406,235.96,235.93,0.02806995]
[1737943186999,3.11e-06,235.98,235.93,0.02806995]
[1737943187204,4.2405,235.97,235.93,0.02806995]
[1737943189507,3.11e-06,235.98,235.93,0.02806995]
[1737943189708,4.2409,235.94,235.93,0.02806995]
[1737943190606,4.2407,235.96,235.93,0.02806995]
[1737943191308,4.2407,235.95,235.93,0.02806995]
[1737943191510,3.11e-06,235.98,235.93,0.02806995]
[1737943191709,4.2404,235.96,235.93,0.02806995]
[1737943192413,3.11e-06,235.98,235.95,4.2405]
[1737943192808,3.11e-06,235.98,235.93,0.02806995]
[1737943193005,3.11e-06,235.98,235.97,4.2402]